[Event "7th Sharjah Masters 2024"]
[Site "Sharjah"]
[Date "2024.05.20"]
[Round "7.16"]
[White "Mishra, Abhimanyu"]
[Black "Siddharth, Jagadeesh"]
[Result "1-0"]
[ECO "C03"]
[WhiteElo "2634"]
[BlackElo "2512"]
[Annotator "TA"]
[PlyCount "139"]
[EventDate "2024.05.13"]
[EventType "swiss"]
[EventCountry "UAE"]
[SourceTitle "playchess.com"]
[Source "ChessBase"]
[SourceQuality "1"]
[TimeControl "5400+30"]

{[%evp 52,139,0,0,7,7,6,6,11,11,11,11,11,11,11,12,14,0,0,0,15,15,15,15,16,22,19,21,39,14,12,6,14,18,23,23,23,23,23,23,23,23,47,10,8,8,48,45,39,33,33,33,33,33,31,32,34,27,65,70,62,54,54,54,85,68,72,36,175,8,9,0,0,0,0,0,1723,1776,1779,1412,29961,29963,2751,29956,29971,29970,29965,29966,29977,29976]} 1. e4 {[%emt 1:31:00]} e6 {[%emt 1:31:00]} 2. d4 {[%emt 0:00:30]} d5 {[%emt 0:00:30]} 3. Nd2 {[%emt 0:00:30]} c5 {[%emt 0:00:30]} 4. Ngf3 {[%emt 0:00:30]} cxd4 {[%emt 0:00:30]} 5. Nxd4 {[%emt 0:00:30]} Nf6 {[%emt 0:00:30]} 6. exd5 {[%emt 0:00:30]} Nxd5 {[%emt 0:00:30]} 7. c3 {[%emt 0:00:30]} Be7 {[%emt 0:00:30]} 8. N2f3 {[%emt 0:00:30]} O-O {[%emt 0:00:30]} 9. Bd3 {[%emt 0:00:30]} Nc6 {[%emt 0:00:30] C03: French Tarrasch: Unusual Black 3rd moves.} 10. O-O {[%emt 0:00:30]} Nxd4 {[%emt 0:00:30]} 11. Nxd4 {[%emt 0:00:30]} Bf6 {[%emt 0:00:30]} 12. Qh5 $146 {[%emt 0:00:30]} ({Predecessor:} 12. Be4 Qb6 13. Qc2 h6 14. Bxd5 Bxd4 15. Be4 Bf6 16. a4 Bd7 17. a5 Qa6 18. Be3 {1-0 Shyam,S (2312)-Rahimov,R (2218) Asia-ch U16 Tehran 2008 (2)}) 12... g6 {[%emt 0:00:30]} 13. Qf3 {[%emt 0:00:30]} Bxd4 {[%emt 0:00:30]} 14. cxd4 {[%emt 0:00:30]} Qh4 {[%emt 0:00:30]} 15. Re1 {[%emt 0:00:30]} Bd7 {[%emt 0:00:30]} 16. Re4 {[%emt 0:00:30]} Qe7 {[%emt 0:00:30]} 17. Bh6 {[%emt 0:00:30]} Rfe8 {[%emt 0:00:30]} 18. Rae1 {[%emt 0:00:30]} Bc6 {[%emt 0:00:30]} 19. Qg3 {[%emt 0:00:30]} Nb4 {[%emt 0:00:30]} 20. Rg4 {[%emt 0:00:30]} Nxd3 {[%emt 0:00:30]} 21. Qxd3 {[%emt 0:00:30]} Qb4 {[%emt 0:00:30]} 22. Qe2 {[%emt 0:00:30]} Qb5 {[%emt 0:00:30]} 23. Qe5 {[%emt 0:00:30]} Qxe5 {[%emt 0:00:30]} 24. dxe5 {[%emt 0:00:30]} Bd5 {[%emt 0:00:30]} 25. a3 {[%emt 0:00:30]} Rac8 {[%emt 0:00:30]} 26. Bd2 {[%emt 0:00:30]} Red8 {[%emt 0:00:30]} 27. Bc3 {[%emt 0:00:30]} Rc4 {[%emt 0:00:30]} 28. Rxc4 {[%emt 0:00:30]} Bxc4 {[%emt 0:00:30]} 29. h4 {[%emt 0:00:30]} h5 {[%emt 0:00:30]} 30. Kh2 {[%emt 0:00:30]} Bd5 {[%emt 0:00:30]} 31. Kg3 {[%emt 0:00:30]} Rc8 {[%emt 0:00:30]} 32. f3 {[%emt 0:00:30]} Rc4 {[%emt 0:00:30]} 33. Rd1 {[%emt 0:00:30]} a6 {[%emt 0:00:30]} 34. Rd2 {[%emt 0:00:30]} Kf8 {[%emt 0:00:30]} 35. Bd4 {[%emt 0:00:30]} Ke8 {[%emt 0:00:30]} 36. Kf4 {[%emt 0:00:30]} Kf8 {[%emt 0:00:30]} 37. Kg5 {[%emt 0:00:30]} Kg7 {[%emt 0:00:30]} 38. Bc3 {[%emt 0:00:30]} Rc6 {[%emt 0:00:30]} 39. Rd4 {[%emt 0:00:30]} Rc4 {[%emt 0:00:30]} 40. Rd1 {[%emt 0:00:30]} Rc6 {[%emt 0:00:30]} 41. Rd2 {[%emt 0:00:30]} Rc4 {[%emt 0:00:30]} 42. Rd3 {[%emt 0:00:30]} Kh7 {[%emt 0:00:30]} 43. g4 {[%emt 0:00:30]} hxg4 {[%emt 0:00:30]} 44. fxg4 {[%emt 0:00:30]} Re4 {[%emt 0:00:30]} 45. h5 {[%emt 0:00:30]} gxh5 {[%emt 0:00:30]} 46. gxh5 {[%emt 0:00:30]} Re2 {[%emt 0:00:30]} 47. Kf6 {[%emt 0:00:30]} Rf2+ {[%emt 0:00:30]} 48. Ke7 {[%emt 0:00:30]} Rf5 {[%emt 0:00:30]} 49. Rh3 $1 {[%emt 0:00:30]} Bf3 {[%emt 0:00:30]} 50. h6 {[%emt 0:00:30]} Bh5 {[%emt 0:00:30]} 51. Kd6 {[%emt 0:00:30]} Kxh6 {[%emt 0:00:30]} 52. Kc7 {[%emt 0:00:30]} Kg5 {[%emt 0:00:30]} 53. Kxb7 {[%emt 0:00:30]} Be2 {[%emt 0:00:30]} 54. a4 {[%emt 0:00:30]} Bd1 {[%emt 0:00:30]} 55. a5 {[%emt 0:00:30]} Be2 {[%emt 0:00:30]} 56. Rh2 {[%emt 0:00:30]} Bf1 {[%emt 0:00:30]} 57. Rh8 {[%emt 0:00:30]} Kg6 {[%emt 0:00:30]} 58. Rg8+ {[%emt 0:00:30]} Kh7 {[%emt 0:00:30]} 59. Rd8 {[%emt 0:00:30]} f6 {[%emt 0:00:30]} (59... Rg5 $1 $14) 60. Rd6 $2 {[%emt 0:00:30]} (60. exf6 $18 {Black must now prevent Rd6.} e5 61. Rd1) 60... fxe5 $11 {[%emt 0:00:30]} 61. Rxa6 {[%emt 0:00:30]} Rf7+ {[%emt 0:00:30]} 62. Kb6 {[%emt 0:00:30]} Bxa6 {[%emt 0:00:30]} 63. Kxa6 {[%emt 0:00:30]} Kg6 $2 {[%emt 0:00:30][%mdl 8192]} (63... e4 $11) 64. Kb6 $18 {[%emt 0:00:30]} Kf5 65. a6 {[%emt 0:00:30]} Ke4 {[%emt 0:01:00]} 66. a7 {[%emt 0:00:30]} Rf8 67. Kb7 {[%emt 0:00:30]} (67. b4 $18 Kd5 68. b5) 67... Rf7+ {[%emt 0:01:00] [#]} 68. Ka6 $1 {[%emt 0:00:30]} Rf8 {[%emt 0:00:30]} 69. b4 {[%emt 0:00:30]} Kd5 {[%emt 0:00:30]} 70. b5 {[%emt 0:00:30]} 1-0

[Event "7th Sharjah Masters 2024"]
[Site "Sharjah"]
[Date "2024.05.20"]
[Round "7.17"]
[White "Puranik, Abhimanyu"]
[Black "Iniyan, Pa"]
[Result "1-0"]
[ECO "B81"]
[WhiteElo "2631"]
[BlackElo "2497"]
[Annotator "TA"]
[PlyCount "67"]
[EventDate "2024.05.13"]
[EventType "swiss"]
[EventCountry "UAE"]
[SourceTitle "playchess.com"]
[Source "ChessBase"]
[SourceQuality "1"]
[TimeControl "5400+30"]

{[%evp 13,67,15,12,0,42,35,34,23,37,0,-5,-62,0,0,0,0,0,0,23,27,41,0,0,0,20,25,226,243,811,829,849,845,825,840,835,824,814,788,1564,1338,29984,29985,29985,29986,29993,5541,5541,5527,4937,4821,4929,4821,29988,29983,29983,29984]} 1. e4 {[%emt 1:31:00]} c5 {[%emt 1:31:00]} 2. Nf3 {[%emt 0:00:30]} d6 {[%emt 0:00:30]} 3. d4 {[%emt 0:00:30]} cxd4 {[%emt 0:00:30]} 4. Nxd4 {[%emt 0:00:30]} Nf6 {[%emt 0:00:30][%cal Bg8f6,Bf6d7,Bd7b6][%mdl 32]} 5. Nc3 {[%emt 0:00:30]} a6 {[%emt 0:00:30]} 6. h3 {[%emt 0:00:30]} e6 {[%emt 0:00:30]} 7. g4 {[%emt 0:00:30][%cal Bg2g4,Bg4g5][%mdl 32]} b5 {[%emt 0:00:30]} 8. g5 {[%emt 0:00:30]} Nfd7 {[%emt 0:00:30]} (8... b4 $5) 9. a3 {[%emt 0:00:30]} Bb7 {[%emt 0:00:30]} 10. Be3 {[%emt 0:00:30] White is slightly better.} Nb6 {[%emt 0:00:30]} 11. f4 {[%emt 0:00:30]} N8d7 {[%emt 0:00:30]} 12. f5 {[%emt 0:00:30]} (12. Bd3 $11) 12... exf5 {[%emt 0:00:30]} (12... e5 $1 $15 13. Nf3 Rc8) 13. Nxf5 $11 {[%emt 0:00:30][%cal Od1d4] Hoping for Qd4!} Ne5 {[%emt 0:00:30]} 14. Bxb6 $1 {[%emt 0:00:30]} Qxb6 {[%emt 0:00:30]} 15. Nd5 $36 {[%emt 0:00:30][%mdl 2048] White is more active.} Qd8 {[%emt 0:00:30]} 16. h4 {[%emt 0:00:30]} h6 {[%emt 0:00:30]} 17. gxh6 {[%emt 0:00:30]} g6 {[%emt 0:00:30]} 18. Ng7+ {[%emt 0:00:30] Excellent horsemanship.} Kd7 $1 {[%emt 0:00:30]} 19. Bh3+ $1 {[%emt 0:00:30]} Kc6 $2 {[%emt 0:00:30] [#] This costs Black the game.} (19... f5 $1 $11 {and Black is okay.} 20. Nxf5 (20. exf5 $2 Qxh4+ 21. Kf1 Qc4+ 22. Qe2 Bxd5 $19) 20... gxf5 21. Bxf5+ Kc6) 20. c4 $1 $18 {[%emt 0:00:30]} Qxh4+ $2 {[%emt 0:00:30]} (20... Bc8 21. cxb5+ Kb7) 21. Kf1 {[%emt 0:00:30]} Qxe4 {[%emt 0:00:30]} 22. cxb5+ {[%emt 0:00:30]} axb5 {[%emt 0:00:30] [#]} 23. Rc1+ $1 {[%emt 0:00:30]} Nc4 {[%emt 0:00:30]} 24. Bg2 {[%emt 0:00:30]} (24. Bd7+ $2 Kxd7 25. Nf6+ Kd8 26. Nxe4 Ne3+ 27. Kg1 Nxd1 $19) 24... Qe5 {[%emt 0:00:30]} 25. Qb3 {[%emt 0:00:30] White threatens Rxc4+ and mate.} Ra4 {[%emt 0:00:30]} 26. Rh4 {[%emt 0:00:30]} Bxg7 {[%emt 0:00:30]} 27. Rhxc4+ {[%emt 0:00:30]} Rxc4 {[%emt 0:00:30]} 28. Rxc4+ {[%emt 0:00:30]} (28. hxg7 $2 Rxc1+ 29. Kf2 Qxg7 $19) 28... bxc4 {[%emt 0:00:30]} 29. Qb6+ {[%emt 0:00:30]} (29. hxg7 $2 {loses.} cxb3 30. Nf6+ Kc7 31. gxh8=Q Bxg2+ (31... Qxb2 $2 32. Ne8+ Kd8 33. Qxb2 $18) 32. Kxg2 Qxb2+ 33. Kf3 Qc3+ (33... Qxa3 34. Nd5+ Kc6 35. Ne3 $11) 34. Ke2 Qc4+ 35. Ke3 b2 36. Ne8+ Kd7 37. Qxb2 Kxe8 38. Qb8+ Kd7 $19) (29. Qa4+ $142 Kc5 30. Qa5+ (30. hxg7 $2 {too greedy.} Qf5+ 31. Ke1 Qb1+ 32. Kf2 Qxb2+ 33. Ke3 Qd4+ 34. Ke2 Qd3+ 35. Ke1 Qb1+ 36. Kd2 Ra8 $19) 30... Kd4 31. Qa7+ (31. Qd2+ Kc5 32. Qa5+ Kd4 33. Qa7+ Kd3 34. Nb4+ Kd2 35. Qf2+ Qe2+ 36. Qxe2+ Kc1 37. Qc2#) 31... Kd3 32. Nb4+ (32. Qxb7 Qe2+ 33. Kg1 Bd4+ 34. Kh2 Rxh6+ 35. Kg3 Qf2+ 36. Kg4 Qxg2+ 37. Kf4 Rh4#) 32... Kd2 33. Qf2+ (33. Bxb7 Qe2+ 34. Kg1 Qg4+ 35. Kf1 Bd4) 33... Qe2+ 34. Qxe2+ Kc1 35. Qc2#) 29... Kd7 {[%emt 0:00:30]} 30. Qxb7+ {[%emt 0:00:30]} Ke6 {[%emt 0:00:30]} 31. Qe7+ {[%emt 0:00:30]} Kf5 {[%emt 0:00:30]} 32. hxg7 {[%emt 0:00:30]} Rg8 {[%emt 0:00:30]} 33. Bh3+ {[%emt 0:00:30]} Ke4 {[%emt 0:00:30]} 34. Nf6+ {[%emt 0:00:30] Weighted Error Value: White=0.11 (very precise) /Black=0.75.  Loses game:     	---       	Black=1      Mistake:       	White=1     	Black=2      Inaccurate:     	White=1     	Black=1      OK:         	White=4     	Black=4      Best:        	White=2     	Black=1      Strong:       	White=3     	Black=1} 1-0

[Event "7th Sharjah Masters 2024"]
[Site "Sharjah"]
[Date "2024.05.20"]
[Round "7.18"]
[White "Martirosyan, Haik M."]
[Black "Royal, Shreyas"]
[Result "1-0"]
[ECO "B57"]
[WhiteElo "2679"]
[BlackElo "2464"]
[Annotator "TA"]
[PlyCount "65"]
[EventDate "2024.05.13"]
[EventType "swiss"]
[EventCountry "UAE"]
[SourceTitle "playchess.com"]
[Source "ChessBase"]
[SourceQuality "1"]
[TimeControl "5400+30"]

{[%evp 22,65,0,0,0,0,0,-4,0,0,0,0,0,0,27,16,36,22,40,33,96,91,174,167,161,171,171,184,498,539,656,650,641,647,1185,726,750,714,752,697,757,715,696,741,775,758]} 1. e4 {[%emt 1:31:00]} c5 {[%emt 1:31:00]} 2. Nf3 {[%emt 0:00:30]} d6 {[%emt 0:00:30]} 3. d4 {[%emt 0:00:30]} cxd4 {[%emt 0:00:30]} 4. Nxd4 {[%emt 0:00:30]} Nf6 {[%emt 0:00:30]} 5. Nc3 {[%emt 0:00:30]} Nc6 {[%emt 0:00:30]} 6. Bc4 {[%emt 0:00:30]} Qb6 {[%emt 0:00:30]} 7. Nb3 {[%emt 0:00:30]} e6 {[%emt 0:00:30]} 8. O-O {[%emt 0:00:30]} Be7 {[%emt 0:00:30]} 9. Be3 {[%emt 0:00:30]} Qc7 {[%emt 0:00:30]} 10. f4 {[%emt 0:00:30]} a6 {[%emt 0:00:30]} 11. a4 {[%emt 0:00:30]} b6 {[%emt 0:00:30]} 12. Bd3 {[%emt 0:00:30]} Bb7 {[%emt 0:00:30]} 13. Qe1 {[%emt 0:00:30]} O-O {[%emt 0:00:30]} 14. Qg3 {[%emt 0:00:30]} Nb4 {[%emt 0:00:30] The position is equal.} 15. f5 {[%emt 0:00:30]} Kh8 $1 {[%emt 0:00:30]} 16. fxe6 {[%emt 0:00:30]} fxe6 {[%emt 0:00:30]} 17. Nd4 $36 {[%emt 0:00:30][%mdl 2048] White has some pressure.} Qd7 {[%emt 0:00:30]} 18. Qh3 {[%emt 0:00:30]} Nxd3 {[%emt 0:00:30]} 19. cxd3 {[%emt 0:00:30]} Bc8 {[%emt 0:00:30]} 20. Rac1 {[%emt 0:00:30]} (20. Nf3 {simplifies} e5 21. Qxd7 Bxd7 22. Bxb6 Rab8 23. a5) 20... Qe8 {[%emt 0:00:30]} (20... e5 $14 21. Qxd7 (21. Nf5 Qd8 $14) 21... Bxd7) 21. Nxe6 $16 {[%emt 0:00:30][%cal Oc3d5] White is much more active.} Bd8 {[%emt 0:00:30] [#]} (21... Qf7 $16 22. Ng5 Qb3) 22. Nxg7 $1 $18 {[%emt 0:00:30][%mdl 512]} Kxg7 {[%emt 0:00:30] [#]} 23. Qg3+ {[%emt 0:00:30]} Qg6 {[%emt 0:00:30] And now ...Qxg3 would win.} 24. Qxd6 {[%emt 0:00:30][%cal Oc3e2] Hoping for Ne2!} Re8 $2 {[%emt 0:00:30] Black is weak on the dark squares} (24... Bh3 25. Rc2 Ra7) 25. Nd5 {[%emt 0:00:30] White wants to mate with Nxf6. White is clearly winning.} (25. Bxb6 Bh3 26. Rc2 Re6 27. Qxd8 Rxd8 28. Bxd8 Rc6 $11) 25... Nh5 {[%emt 0:00:30]} 26. Bd4+ {[%emt 0:00:30]} Kh6 {[%emt 0:00:30]} 27. Rc6 {[%emt 0:00:30]} Be6 {[%emt 0:00:30]} 28. Be3+ {[%emt 0:00:30]} Kg7 {[%emt 0:00:30]} 29. Qe5+ {[%emt 0:00:30]} (29. Nxb6 Ra7 30. Nd5 Rd7 31. Qe5+ Kg8 $16) 29... Kg8 {[%emt 0:00:30]} 30. Bd4 {[%emt 0:00:30]} (30. Nxb6 Ra7 $16) 30... Ng7 {[%emt 0:00:30]} 31. Nf6+ {[%emt 0:00:30]} (31. Bxb6 Qh5 32. Qxh5 (32. Nf6+ $2 Bxf6 33. Qxf6 Rf8 $19) 32... Nxh5 $16) 31... Bxf6 {[%emt 0:00:30]} 32. Rxf6 {[%emt 0:00:30]} ({And not} 32. Qxf6 Qxf6 33. Bxf6 Bb3 $11) 32... Qg4 {[%emt 0:00:30]} 33. h3 {[%emt 0:00:30] Weighted Error Value: White=0.04 (flawless) /Black=0.47.  Mistake:       	---       	Black=3      Inaccurate:     	---       	Black=1      OK:         	White=6     	Black=1      Best:        	White=2     	Black=3      Strong:       	---       	Black=1      Brilliant:      	White=1     	---} (33. Rxb6 Bc4 34. Qc7 Rac8 $11) 1-0

[Event "7th Sharjah Masters 2024"]
[Site "Sharjah"]
[Date "2024.05.20"]
[Round "7.19"]
[White "Horvath, Dominik"]
[Black "Sevian, Samuel"]
[Result "1/2-1/2"]
[ECO "B67"]
[WhiteElo "2554"]
[BlackElo "2699"]
[Annotator "TA"]
[PlyCount "44"]
[EventDate "2024.05.13"]
[EventType "swiss"]
[EventCountry "UAE"]
[SourceTitle "playchess.com"]
[Source "ChessBase"]
[SourceQuality "1"]
[TimeControl "5400+30"]

{[%evp 18,44,26,33,39,25,26,25,23,13,37,36,41,48,50,32,39,0,0,0,0,0,0,0,0,0,0,0,0]} 1. e4 {[%emt 1:31:00]} c5 {[%emt 1:31:00]} 2. Nf3 {[%emt 0:00:30]} d6 {[%emt 0:00:30]} 3. d4 {[%emt 0:00:30]} cxd4 {[%emt 0:00:30]} 4. Nxd4 {[%emt 0:00:30]} Nf6 {[%emt 0:00:30]} 5. Nc3 {[%emt 0:00:30]} Nc6 {[%emt 0:00:30]} 6. Bg5 {[%emt 0:00:30]} a6 {[%emt 0:00:30]} 7. Qd2 {[%emt 0:00:30]} e6 {[%emt 0:00:30]} 8. O-O-O {[%emt 0:00:30]} Bd7 {[%emt 0:00:30]} 9. Kb1 {[%emt 0:00:30]} Be7 {[%emt 0:00:30]} 10. f3 {[%emt 0:00:30]} Nxd4 {[%emt 0:00:30]} 11. Qxd4 {[%emt 0:00:30]} b5 {[%emt 0:00:30][%cal Bb7b5,Bb5b4][%mdl 32]} 12. h4 {[%emt 0:00:30]} Qc7 {[%emt 0:00:30] White has an edge.} 13. g4 {[%emt 0:00:30][%cal Bg2g4,Bg4g5][%mdl 32]} Rb8 {[%emt 0:00:30]} 14. Be3 {[%emt 0:00:30]} b4 {[%emt 0:00:30]} 15. Ne2 {[%emt 0:00:30]} Bb5 {[%emt 0:00:30]} 16. g5 {[%emt 0:00:30]} (16. Qxb4 $2 {loses.} Bxe2 17. Qa4+ Bb5 18. Bxb5+ axb5 $19) 16... Nh5 {[%emt 0:00:30][%cal Bf6h5,Bh5f4,Bf4g6][%mdl 32]} 17. Nf4 {[%emt 0:00:30]} (17. Qxb4 $2 {perishes.} Bxe2 18. Qa4+ Bb5 19. Bxb5+ axb5 $19) (17. b3 {simplifies} O-O 18. c4 bxc3 19. Nxc3 Bxf1 20. Rhxf1 a5 21. Rc1) 17... Nxf4 {[%emt 0:00:30] The position is equal.} 18. Qxg7 {[%emt 0:00:30]} (18. Bxf4 $2 {is the wrong capture.} e5 19. Qe3 exf4 $19) 18... Ng6 {[%emt 0:00:30] ...Rc8 would now be deadly.} 19. h5 {[%emt 0:00:30]} Bf8 $1 {[%emt 0:00:30]} 20. Qf6 {[%emt 0:00:30]} Be7 {[%emt 0:00:30]} 21. Qg7 {[%emt 0:00:30]} Bf8 $1 {[%emt 0:00:30]} 22. Qf6 {[%emt 0:00:30]} Be7 {[%emt 0:00:30] Weighted Error Value: White=0.05 (flawless) /Black=0.03 (flawless) .  Inaccurate:     	White=1     	---        OK:         	White=6     	Black=3      Best:        	---       	Black=3      Strong:       	---       	Black=2} 1/2-1/2

[Event "7th Sharjah Masters 2024"]
[Site "Sharjah"]
[Date "2024.05.20"]
[Round "7.20"]
[White "Sadhwani, Raunak"]
[Black "Bharath Subramaniyam H"]
[Result "1/2-1/2"]
[ECO "C55"]
[WhiteElo "2654"]
[BlackElo "2545"]
[Annotator "RC"]
[PlyCount "65"]
[EventDate "2024.05.13"]
[EventType "swiss"]
[EventCountry "UAE"]
[SourceTitle "playchess.com"]
[Source "ChessBase"]
[SourceQuality "1"]
[TimeControl "5400+30"]

1. e4 {[%emt 1:31:00]} e5 {[%emt 1:31:00]} 2. Nf3 {[%emt 0:00:30]} Nc6 {[%emt 0:00:30]} 3. Bc4 {[%emt 0:00:30]} Nf6 {[%emt 0:00:30]} 4. d3 {[%emt 0:00:30]} Be7 {[%emt 0:00:30]} 5. O-O {[%emt 0:00:30]} O-O {[%emt 0:00:30]} 6. Re1 {[%emt 0:00:30]} d6 {[%emt 0:00:30]} 7. a4 {[%emt 0:00:30]} Na5 {[%emt 0:00:30]} 8. Ba2 {[%emt 0:00:30]} c5 {[%emt 0:00:30]} 9. c3 {[%emt 0:00:30]} Nc6 {[%emt 0:00:30]} 10. Na3 {[%emt 0:00:30]} h6 {[%emt 0:00:30]} 11. Bd2 {[%emt 0:00:30]} a6 {[%emt 0:00:30]} 12. h3 {[%emt 0:00:30]} Rb8 {[%emt 0:00:30]} 13. d4 {[%emt 0:00:30]} cxd4 {[%emt 0:00:30]} 14. cxd4 {[%emt 0:00:30]} exd4 {[%emt 0:00:30]} 15. Nc2 {[%emt 0:00:30]} d5 {[%emt 0:00:30]} 16. e5 {[%emt 0:00:30]} Ne4 {[%emt 0:00:30]} 17. Ncxd4 {[%emt 0:00:30]} Nxd2 {[%emt 0:00:30]} 18. Qxd2 {[%emt 0:00:30]} Bb4 {[%emt 0:00:30]} 19. Qe3 {[%emt 0:00:30]} Bxe1 {[%emt 0:00:30]} 20. Rxe1 {[%emt 0:00:30]} Re8 {[%emt 0:00:30]} 21. Bb1 {[%emt 0:00:30]} Be6 {[%emt 0:00:30]} 22. Qd3 {[%emt 0:00:30]} g6 {[%emt 0:00:30]} 23. Qe3 {[%emt 0:00:30]} Kg7 {[%emt 0:00:30]} 24. g4 {[%emt 0:00:30]} Rc8 {[%emt 0:00:30]} 25. Kg2 {[%emt 0:00:30]} Qe7 {[%emt 0:00:30]} 26. Re2 {[%emt 0:00:30]} Rh8 {[%emt 0:00:30]} 27. Qf4 {[%emt 0:00:30]} Nxd4 {[%emt 0:00:30]} 28. Nxd4 {[%emt 0:00:30]} Rc4 {[%emt 0:00:30]} 29. Bd3 {[%emt 0:00:30]} Rxd4 {[%emt 0:00:30]} 30. Qxd4 {[%emt 0:00:30]} h5 {[%emt 0:00:30]} 31. f3 {[%emt 0:00:30]} Qh4 {[%emt 0:00:30]} 32. Re3 {[%emt 0:00:30]} Rc8 {[%emt 0:00:30]} 33. Re2 {[%emt 0:00:30]} 1/2-1/2

[Event "7th Sharjah Masters 2024"]
[Site "Sharjah"]
[Date "2024.05.20"]
[Round "7.21"]
[White "Can, Emre"]
[Black "Sargsyan, Shant"]
[Result "1/2-1/2"]
[ECO "E52"]
[WhiteElo "2549"]
[BlackElo "2637"]
[Annotator "RC"]
[PlyCount "65"]
[EventDate "2024.05.13"]
[EventType "swiss"]
[EventCountry "UAE"]
[SourceTitle "playchess.com"]
[Source "ChessBase"]
[SourceQuality "1"]
[TimeControl "5400+30"]

1. d4 {[%emt 1:31:00]} e6 {[%emt 1:31:00]} 2. c4 {[%emt 0:00:30]} b6 {[%emt 0:00:30]} 3. Nc3 {[%emt 0:00:30]} Bb4 {[%emt 0:00:30]} 4. Bd2 {[%emt 0:00:30]} Bb7 {[%emt 0:00:30]} 5. e3 {[%emt 0:00:30]} Nf6 {[%emt 0:00:30]} 6. Nf3 {[%emt 0:00:30]} O-O {[%emt 0:00:30]} 7. Bd3 {[%emt 0:00:30]} d5 {[%emt 0:00:30]} 8. cxd5 {[%emt 0:00:30]} exd5 {[%emt 0:00:30]} 9. O-O {[%emt 0:00:30]} Bd6 {[%emt 0:00:30]} 10. Rc1 {[%emt 0:00:30]} c5 {[%emt 0:00:30]} 11. Ne5 {[%emt 0:00:30]} Nc6 {[%emt 0:00:30]} 12. Nxc6 {[%emt 0:00:30]} Bxc6 {[%emt 0:00:30]} 13. Nb5 {[%emt 0:00:30]} c4 {[%emt 0:00:30]} 14. Nxd6 {[%emt 0:00:30]} Qxd6 {[%emt 0:00:30]} 15. Bb1 {[%emt 0:00:30]} b5 {[%emt 0:00:30]} 16. Qe1 {[%emt 0:00:30]} Rfe8 {[%emt 0:00:30]} 17. f3 {[%emt 0:00:30]} Qd8 18. Ba5 {[%emt 0:00:30]} Qe7 {[%emt 0:01:00]} 19. Kf2 {[%emt 0:00:30]} h5 {[%emt 0:00:30]} 20. Qd2 {[%emt 0:00:30]} g6 {[%emt 0:00:30]} 21. Rce1 {[%emt 0:00:30]} Qd6 {[%emt 0:00:30]} 22. Kg1 {[%emt 0:00:30]} Re6 {[%emt 0:00:30]} 23. a3 {[%emt 0:00:30]} Rae8 {[%emt 0:00:30]} 24. Bb4 {[%emt 0:00:30]} Qc7 {[%emt 0:00:30]} 25. Ba5 {[%emt 0:00:30]} Qe7 {[%emt 0:00:30]} 26. Bb4 {[%emt 0:00:30]} Qd7 {[%emt 0:00:30]} 27. Qf2 {[%emt 0:00:30]} Qc7 {[%emt 0:00:30]} 28. Qd2 {[%emt 0:00:30]} Bb7 {[%emt 0:00:30]} 29. Ba5 {[%emt 0:00:30]} Qe7 {[%emt 0:00:30]} 30. Bb4 {[%emt 0:00:30]} Qd7 {[%emt 0:00:30]} 31. Bc3 {[%emt 0:00:30]} Qe7 {[%emt 0:00:30]} 32. Bb4 {[%emt 0:00:30]} Qd7 {[%emt 0:00:30]} 33. Bc3 {[%emt 0:00:30]} 1/2-1/2